bitfinex-derivatives/quotes_SOLF0:USTF0_20241016
["timestamp","ask_amount","ask_price","bid_price","bid_amount"]
[1729039536534,3.2452,154.07,154.03,9.98]
[1729039536728,3.2452,154.07,154.04,9.98]
[1729039537137,3.2452,154.07,154.04,13.2255]
[1729039537734,11.3194,154.09,154.04,13.2255]
[1729039537939,9.98,154.07,154.03,9.98]
[1729039538438,11.3194,154.09,154.03,9.98]
[1729039538631,3.2452,154.07,154.03,13.2258]
[1729039539945,3.2452,154.07,154.04,3.2457]
[1729039540545,3.2452,154.07,154.03,9.98]
[1729039540745,3.2452,154.07,154.03,13.2258]
[1729039541350,3.2452,154.07,154.04,3.2456]
[1729039542544,3.2452,154.07,154.04,13.2256]
[1729039545450,3.245,154.08,154.04,13.2256]
[1729039546249,3.2451,154.07,154.04,13.2256]
[1729039547249,11.3194,154.09,154.04,13.2256]
[1729039547449,3.2449,154.08,154.04,13.2256]
[1729039549348,3.2451,154.07,154.04,13.2256]
[1729039556567,3.245,154.08,154.05,3.2455]
[1729039557159,3.2452,154.07,154.04,13.2256]
[1729039558455,11.3194,154.09,154.04,13.2256]
[1729039558658,3.2449,154.08,154.04,13.2256]
[1729039561261,9.98,154.05,153.95,1.444]
[1729039561468,9.98,154.02,153.96,4.82]
[1729039561764,4.82,154.07,153.94,3.2478]
[1729039561765,13.2271,153.98,153.94,3.2478]
[1729039561976,9.98,153.98,153.93,16.1654]
[1729039562461,9.98,153.97,153.91,9.98]
[1729039562657,9.98,153.97,153.88,1.3083]
[1729039562858,9.98,153.94,153.89,9.98]
[1729039563054,9.98,153.91,153.86,1.0]
[1729039563458,13.2293,153.87,153.86,1.0]
[1729039563668,9.98,153.87,153.78,1.3083]
[1729039563971,3.2497,153.85,153.78,14.5394]
[1729039564178,22.73080129,153.94,153.81,9.98]
[1729039564179,9.98,153.87,153.81,9.98]
[1729039564464,9.98,153.86,153.8,9.98]
[1729039565254,9.98,153.86,153.8,13.2307]
[1729039565457,8.0694,153.87,153.83,9.98]
[1729039565866,8.0694,153.87,153.81,3.2505]
[1729039566667,3.2494,153.87,153.81,8.0705]
[1729039567169,21.8041,153.92,153.82,16.6]
[1729039567466,21.8041,153.92,153.83,1.3136]
[1729039568469,3.2487,153.9,153.84,3.2498]
[1729039568969,3.2487,153.9,153.85,1.4181]
[1729039569569,3.2489,153.89,153.85,1.4181]
[1729039570085,3.2489,153.89,153.84,3.2498]
[1729039570478,3.2486,153.91,153.86,3.2495]
[1729039570973,4.82,153.92,153.85,4.82]
[1729039571657,8.0684,153.92,153.87,3.2493]
[1729039571864,20.42,153.92,153.84,15.6]
[1729039572064,15.6,153.89,153.82,1.0]
[1729039572272,3.2493,153.87,153.82,4.2502]
[1729039572570,20.42,153.92,153.82,16.6]
[1729039572970,3.2487,153.9,153.85,3.2497]
[1729039573971,3.2485,153.91,153.86,3.2495]
[1729039574158,4.82,153.92,153.84,4.82]
[1729039574360,4.82,153.92,153.85,15.6]
[1729039574771,4.82,153.92,153.87,3.2491]
[1729039574772,8.0684,153.92,153.87,3.2491]
[1729039574975,20.42,153.92,153.85,1.3632]
[1729039575375,3.2492,153.88,153.84,4.82]
[1729039575667,20.42,153.88,153.82,1.0]
[1729039576066,3.2499,153.85,153.82,1.0]
[1729039576265,4.82,153.88,153.82,1.0]
[1729039576866,15.6,153.87,153.82,1.0]
[1729039577761,3.2499,153.84,153.82,1.0]
[1729039577963,15.6,153.87,153.82,1.0]
[1729039578579,4.82,153.88,153.82,1.0]
[1729039579565,15.6,153.83,153.82,1.0]
[1729039579771,20.42,153.83,153.82,1.0]
[1729039580074,8.0701,153.83,153.82,1.0]
[1729039581973,23.6701,153.83,153.82,1.0]
[1729039582375,23.6701,153.83,153.79,1.3737]
[1729039582579,3.2509,153.8,153.75,3.2517]
[1729039583071,3.2512,153.79,153.74,3.2519]
[1729039583477,3.2512,153.79,153.73,5.82]
[1729039583684,3.2508,153.8,153.73,5.82]
[1729039584177,18.8506,153.81,153.73,5.82]
[1729039584378,20.42,153.83,153.74,15.6]
[1729039584978,4.82,153.83,153.74,15.6]
[1729039585177,4.82,153.83,153.76,15.6]
[1729039585575,8.0702,153.83,153.79,3.2509]
[1729039587879,20.42,153.83,153.74,15.6]
[1729039588076,3.2503,153.82,153.78,3.2511]
[1729039589381,3.2509,153.8,153.76,3.2515]
[1729039589591,15.6,153.81,153.75,1.404]
[1729039590394,15.6,153.79,153.75,1.404]
[1729039590578,3.2516,153.76,153.75,1.404]
[1729039590775,15.6,153.76,153.73,1.0]
[1729039591281,3.252,153.74,153.73,1.0]
[1729039591881,15.6,153.77,153.73,1.0]
[1729039592093,4.84,153.78,153.73,1.0]
[1729039592583,15.6,153.79,153.73,1.0]
[1729039594386,18.8511,153.79,153.75,3.2518]
[1729039594590,15.6,153.79,153.73,1.0]
[1729039595477,3.2513,153.78,153.74,3.252]
[1729039596277,15.6,153.81,153.73,1.0]
[1729039596477,20.44,153.81,153.73,1.0]
[1729039596674,4.84,153.81,153.73,16.6]
[1729039596878,4.84,153.81,153.77,3.2513]
[1729039597294,20.44,153.83,153.77,3.2513]
[1729039597492,3.2508,153.81,153.77,3.2513]
[1729039600686,4.2783,153.8,153.77,3.2513]
[1729039601593,7.5291,153.8,153.76,3.2516]
[1729039602683,7.5291,153.8,153.77,3.2514]
[1729039602991,4.2783,153.8,153.77,3.2514]
[1729039603389,4.2783,153.8,153.75,15.6]
[1729039603595,4.2783,153.8,153.75,20.44]
[1729039604484,4.2783,153.8,153.79,3.251]
[1729039609393,4.2783,153.8,153.78,3.2511]
[1729039610103,7.5291,153.8,153.78,3.2511]
[1729039610989,4.2783,153.8,153.78,3.2511]
[1729039613904,4.2783,153.8,153.79,3.251]
[1729039623707,4.2783,153.8,153.79,8.071]
[1729039625002,1.8529,153.8,153.79,8.071]
[1729039626006,1.8529,153.8,153.79,11.267684]
[1729039627308,1.3667,153.87,153.86,3.2495]
[1729039627811,1.3667,153.87,153.83,4.82]
[1729039628115,1.4326,153.86,153.84,3.2498]
[1729039628909,17.0326,153.86,153.8,4.82]
[1729039629514,3.2498,153.85,153.8,4.82]
[1729039630010,3.2498,153.85,153.82,3.2502]
[1729039630308,1.3167,153.84,153.82,3.2502]
[1729039630612,4.5666,153.84,153.82,3.2502]
[1729039632614,1.3167,153.84,153.82,3.2502]
[1729039635109,1.3167,153.84,153.82,3.2501]
[1729039635828,1.3167,153.84,153.83,3.2501]
[1729039636014,1.3167,153.84,153.8,4.82]
[1729039636211,14.5567,153.84,153.8,4.82]
[1729039636416,14.5567,153.84,153.81,3.2504]
[1729039636710,11.3067,153.84,153.81,3.2504]
[1729039637427,1.3167,153.84,153.8,14.81]
[1729039637615,1.3167,153.84,153.83,9.99]
[1729039638112,1.3167,153.84,153.83,13.2401]
[1729039638313,1.4326,153.86,153.83,9.99]
[1729039638527,1.4326,153.86,153.85,3.2497]
[1729039639729,14.6722,153.86,153.83,3.25]
[1729039639924,1.4326,153.86,153.83,3.25]
[1729039640528,4.6821,153.86,153.83,3.25]
[1729039641029,3.2503,153.83,153.8,3.2507]
[1729039641229,1.3489,153.82,153.74,15.61]
[1729039641429,15.61,153.81,153.72,15.61]
[1729039641727,15.61,153.81,153.71,4.82]
[1729039641728,15.61,153.79,153.71,4.82]
[1729039641932,1.3513,153.78,153.71,4.82]
[1729039642327,1.3513,153.78,153.69,16.61]
[1729039642533,1.3513,153.78,153.71,4.82]
[1729039643536,3.2514,153.77,153.74,3.2519]
[1729039643835,1.3513,153.78,153.69,16.61]
[1729039644037,15.61,153.75,153.69,1.0]
[1729039644238,2.7644,153.74,153.69,1.0]
[1729039644928,6.0164,153.74,153.69,4.253]
[1729039645128,2.7644,153.74,153.69,1.0]
[1729039645437,4.82,153.73,153.69,1.0]
[1729039646639,3.2525,153.72,153.69,1.0]
[1729039646930,4.82,153.73,153.69,1.0]
[1729039646931,3.2529,153.7,153.69,1.0]
[1729039647131,17.77117778,153.7,153.69,1.0]
[1729039647932,19.11957778,153.7,153.69,1.0]
[1729039648545,22.37247778,153.7,153.69,1.0]
[1729039649129,19.11957778,153.7,153.64,1.0]
[1729039649330,15.61,153.65,153.64,1.0]
[1729039649537,20.43,153.65,153.64,1.0]
[1729039650133,20.43,153.65,153.6,1.0]
[1729039650336,1.4002,153.64,153.6,1.0]
[1729039650536,4.6545,153.64,153.6,1.0]
[1729039650840,1.4002,153.64,153.6,1.0]
[1729039651236,6.3402,153.64,153.6,1.0]
[1729039652539,9.5944,153.64,153.6,1.0]
[1729039655640,3.2544,153.63,153.6,1.0]
[1729039656835,6.3402,153.64,153.6,1.0]
[1729039657033,9.5944,153.64,153.6,1.0]
[1729039659044,3.2548,153.61,153.6,1.0]
[1729039659742,18.8648,153.61,153.6,1.0]
[1729039660248,15.61,153.61,153.56,1.0]
[1729039660544,15.61,153.58,153.56,1.0]
[1729039660946,15.61,153.61,153.56,1.0]
[1729039661150,4.94,153.61,153.56,1.0]
[1729039661348,17.77977981,153.62,153.56,1.0]
[1729039661349,22.71977981,153.62,153.56,1.0]
[1729039662053,3.255,153.61,153.56,4.2558]
[1729039662249,18.865,153.61,153.56,4.2558]
[1729039662551,15.61,153.61,153.56,4.2558]
[1729039663246,18.8656,153.58,153.56,1.0]
[1729039663453,20.55,153.58,153.56,1.0]
[1729039664557,4.94,153.58,153.56,1.0]
[1729039666236,8.1956,153.58,153.56,1.0]
[1729039667356,4.94,153.58,153.56,1.0]
[1729039669148,3.2553,153.59,153.56,1.0]
[1729039671553,4.94,153.61,153.58,3.2553]
[1729039672648,21.03437981,153.62,153.58,3.2553]
[1729039672649,25.97437981,153.62,153.58,3.2553]
[1729039675550,25.97437981,153.62,153.56,1.0]
[1729039675551,17.77977981,153.62,153.59,3.2551]
[1729039676458,18.8648,153.61,153.56,1.0]
[1729039677157,18.8648,153.61,153.57,3.2555]
[1729039677551,18.8648,153.61,153.58,3.2554]
[1729039680357,15.61,153.61,153.58,3.2554]
[1729039681158,15.61,153.61,153.56,1.0]
[1729039681361,15.61,153.59,153.56,1.0]
[1729039681560,18.8656,153.57,153.56,1.0]
[1729039681951,17.77977981,153.62,153.56,1.0]
[1729039681952,15.61,153.58,153.56,1.0]
[1729039682163,17.77977981,153.62,153.56,1.0]
[1729039682164,15.61,153.6,153.58,3.2554]
[1729039684061,15.61,153.6,153.56,1.0]
[1729039684363,33.39406409,153.57,153.56,1.0]
[1729039684762,36.64966409,153.57,153.56,1.0]
[1729039685160,38.33406409,153.57,153.51,1.0]
[1729039685366,38.33406409,153.57,153.51,4.2568]
[1729039685367,15.61,153.54,153.51,4.2568]
[1729039685568,15.61,153.54,153.51,1.0]
[1729039685871,15.61,153.54,153.51,4.2568]
[1729039686764,15.61,153.56,153.51,1.0]
[1729039687158,15.61,153.56,153.53,3.2564]
[1729039689065,15.61,153.56,153.54,3.2563]
[1729039690164,25.97986409,153.57,153.51,1.0]
[1729039690165,17.78406409,153.57,153.55,3.2561]
[1729039690366,17.78406409,153.57,153.52,4.94]
[1729039690762,17.78406409,153.57,153.53,3.2564]
[1729039690763,3.2559,153.56,153.53,3.2564]
[1729039691161,3.2559,153.56,153.51,1.0]
[1729039691162,17.78406409,153.57,153.51,1.0]
[1729039692371,21.03976409,153.57,153.54,3.2562]
[1729039694867,17.78406409,153.57,153.51,1.0]
[1729039695172,17.78406409,153.57,153.56,3.2558]
[1729039699673,17.77977981,153.62,153.56,15.61]
[1729039699878,17.77977981,153.62,153.59,15.61]
[1729039700079,17.77977981,153.62,153.59,4.94]
[1729039701073,17.77977981,153.62,153.61,3.2548]
[1729039702082,19.21167778,153.7,153.65,3.2539]
[1729039703175,15.61,153.69,153.63,4.94]
[1729039703383,21.03156078,153.66,153.6,4.94]
[1729039703989,21.03156078,153.66,153.63,3.2542]
[1729039704174,17.77766078,153.66,153.6,4.94]
[1729039705083,17.77766078,153.66,153.61,3.2546]
[1729039705284,17.77766078,153.66,153.6,4.94]
[1729039705683,15.61,153.65,153.6,4.94]
[1729039705997,15.61,153.63,153.53,18.89220659]
[1729039706185,15.61,153.63,153.57,4.94]
[1729039706485,3.2546,153.62,153.59,3.2551]
[1729039707185,15.61,153.61,153.57,4.94]
[1729039707685,15.61,153.61,153.57,8.1954]
[1729039707686,18.8649,153.61,153.57,8.1954]
[1729039708080,18.8649,153.61,153.57,4.94]
[1729039708282,18.8649,153.61,153.58,3.2553]
[1729039709884,15.61,153.61,153.58,3.2553]
[1729039710193,17.78014326,153.62,153.54,4.96]
[1729039710689,17.0165,153.65,153.61,3.2546]
[1729039711600,20.2706,153.65,153.61,3.2546]
[1729039711996,20.2706,153.65,153.55,15.61]
[1729039712599,3.2542,153.64,153.55,15.61]
[1729039712794,21.03388232,153.64,153.55,15.61]
[1729039712994,21.03388232,153.64,153.61,3.2546]
[1729039713200,21.03388232,153.64,153.54,4.96]
[1729039713201,17.77968232,153.64,153.58,4.96]
[1729039713591,17.77968232,153.64,153.63,3.2544]
[1729039717095,17.77968232,153.64,153.57,15.61]
[1729039717296,17.77968232,153.64,153.58,4.96]
[1729039717887,21.03388232,153.64,153.61,3.2547]
[1729039720100,15.61,153.63,153.58,4.96]
[1729039720392,15.61,153.61,153.57,4.96]
[1729039720599,15.61,153.63,153.57,4.96]
[1729039720898,19.09498232,153.64,153.57,20.57]
[1729039721497,17.77968232,153.64,153.57,20.57]
[1729039722503,17.77968232,153.64,153.63,3.2544]
[1729039729610,3.2538,153.66,153.63,3.2544]
[1729039730006,3.2541,153.65,153.62,3.2544]
[1729039731906,3.2541,153.65,153.63,3.2543]
[1729039732506,15.61,153.67,153.63,3.2543]
[1729039732815,3.2538,153.66,153.63,3.2543]
[1729039733814,18.8641,153.65,153.62,3.2544]
[1729039734015,15.61,153.63,153.6,4.96]
[1729039734920,15.61,153.63,153.61,3.2547]
[1729039736815,18.8644,153.63,153.61,3.2547]
[1729039737015,15.61,153.63,153.57,4.96]
[1729039737213,15.61,153.62,153.53,1.336]
[1729039737416,3.2551,153.6,153.54,4.96]
[1729039737813,3.2551,153.6,153.57,3.2555]
[1729039738826,3.2551,153.6,153.58,3.2554]
[1729039739121,5.9778,153.61,153.58,3.2554]
[1729039741222,17.78024568,153.63,153.61,3.2546]
[1729039741525,17.78024568,153.63,153.58,4.92]
[1729039741924,3.2548,153.61,153.58,8.1753]
[1729039742229,19.18794568,153.63,153.58,4.92]
[1729039742436,17.78024568,153.63,153.58,4.92]
[1729039743329,21.03474568,153.63,153.6,3.2548]
[1729039744221,17.78024568,153.63,153.62,3.2546]
[1729039749529,262.7253262,153.67,153.62,20.53]
[1729039749830,262.7253262,153.67,153.66,3.2537]
[1729039753730,262.7253262,153.67,153.66,23.7837]
[1729039754732,4.5893,153.73,153.7,3.2527]
[1729039756635,3.2527,153.71,153.68,3.2532]
[1729039756940,17.76843891,153.72,153.66,4.92]
[1729039757148,17.76843891,153.72,153.7,3.2529]
[1729039757440,17.76843891,153.72,153.66,20.53]
[1729039757942,17.76843891,153.72,153.66,4.92]
[1729039759335,17.76843891,153.72,153.69,3.2529]
[1729039759535,17.76843891,153.72,153.66,4.92]
[1729039760344,17.76843891,153.72,153.67,3.2533]
[1729039760540,17.76843891,153.72,153.66,4.92]
[1729039760741,17.76843891,153.72,153.66,20.53]
[1729039761141,17.76843891,153.72,153.71,3.2527]
[1729039761938,21.02103891,153.72,153.69,3.253]
[1729039762142,21.02103891,153.72,153.68,4.9]
[1729039762542,21.02103891,153.72,153.69,3.2529]
[1729039763943,17.76843891,153.72,153.71,3.2527]
[1729039765839,6.0041,153.76,153.73,3.2522]
[1729039766549,3.2514,153.77,153.74,3.252]
[1729039766751,1.4249,153.78,153.72,4.9]
[1729039766947,4.6761,153.78,153.75,3.2516]
[1729039767247,1.0,153.79,153.73,15.61]
[1729039767654,1.0,153.79,153.74,3.2519]
[1729039767849,1.0,153.79,153.72,4.9]
[1729039768245,1.0,153.79,153.73,15.61]
[1729039769043,1.0,153.79,153.76,3.2514]
[1729039769649,1.0,153.79,153.73,15.61]
[1729039770055,1.0,153.79,153.75,15.61]
[1729039770352,1.0,153.79,153.78,3.2512]
[1729039775462,1.0,153.79,153.77,3.2513]
[1729039775651,1.0,153.79,153.75,4.94]
[1729039776065,1.0,153.79,153.75,8.1916]
[1729039776066,4.2512,153.79,153.75,8.1916]
[1729039776362,4.2512,153.79,153.75,4.94]
[1729039776957,4.2512,153.79,153.76,3.2515]
[1729039780461,1.0,153.79,153.77,3.2512]
[1729039780657,1.0,153.79,153.76,15.61]
[1729039780955,1.0,153.83,153.82,3.2503]
[1729039781360,1.0,153.83,153.82,18.8603]
[1729039785060,1.0,153.87,153.82,18.8603]
[1729039785061,1.0,153.87,153.86,3.2495]
[1729039785264,1.0,153.87,153.86,18.8595]
[1729039786470,1.0,153.92,153.91,3.2484]
[1729039787863,1.0,153.92,153.89,4.94]
[1729039787864,1.0,153.92,153.89,8.1887]
[1729039788068,4.2483,153.92,153.89,4.94]
[1729039788266,1.0,153.92,153.89,4.94]
[1729039789364,1.0,153.92,153.89,8.1889]
[1729039790969,1.0,153.92,153.9,3.2486]
[1729039793067,1.0,153.92,153.89,4.94]
[1729039793272,4.2484,153.92,153.89,4.94]
[1729039794067,4.2484,153.92,153.89,8.1888]
[1729039794469,1.0,153.92,153.9,3.2486]
[1729039794669,1.0,153.92,153.89,4.94]
[1729039795069,1.0,153.92,153.9,3.2485]
[1729039795580,1.0,153.92,153.89,4.94]
[1729039796575,4.2484,153.92,153.89,4.94]
[1729039798276,4.2484,153.92,153.89,8.1889]
[1729039798477,1.0,153.92,153.89,8.1889]
[1729039800278,1.0,153.92,153.89,4.94]
[1729039800887,1.0,153.96,153.9,15.61]
[1729039801183,1.0,153.96,153.94,15.61]
[1729039801479,1.0,153.96,153.95,3.2476]
[1729039803277,1.0,153.96,153.95,18.8576]
[1729039803684,1.0,153.96,153.95,22.13950971]
[1729039803883,1.0,153.96,153.95,18.8576]
[1729039804484,1.0,153.96,153.95,3.2476]
[1729039804694,1.0,153.96,153.95,8.1876]
[1729039805480,1.0,153.96,153.95,23.7976]
[1729039805784,1.0,154.0,153.99,3.2468]
[1729039806182,1.0,154.0,153.95,20.55]
[1729039806784,1.0,154.0,153.98,3.2468]
[1729039809279,4.2466,154.0,153.96,3.2472]
[1729039809486,1.0,154.0,153.95,4.94]
[1729039809983,3.2469,153.99,153.96,3.2473]
[1729039810577,3.247,153.98,153.93,3.248]
[1729039810779,1.0,154.0,153.94,4.94]
[1729039811083,1.0,154.0,153.93,4.94]
[1729039811484,3.247,153.98,153.94,3.2478]
[1729039811679,1.0,154.0,153.94,3.2478]
[1729039811876,3.2472,153.97,153.94,3.2478]
[1729039814889,1.0,154.0,153.93,4.94]
[1729039815200,1.0,154.0,153.93,20.55]
[1729039815586,1.0,154.0,153.97,3.247]
[1729039816199,1.0,154.0,153.93,20.55]
[1729039816583,1.0,154.0,153.95,15.61]
[1729039816783,1.0,154.0,153.96,3.29716943]
[1729039816985,1.0,154.0,153.97,4.94]
[1729039817296,1.0,154.0,153.99,3.2468]
[1729039820100,1.0,154.0,153.97,4.94]
[1729039820309,1.0,154.0,153.95,15.61]
[1729039820487,1.0,154.0,153.96,4.94]
[1729039820985,1.0,154.0,153.97,3.247]
[1729039821591,1.0,154.0,153.98,3.2469]
[1729039827995,1.0,154.0,153.96,4.94]
[1729039827996,1.0,154.0,153.96,3.2473]
[1729039828304,4.2467,154.0,153.96,8.1873]
[1729039828495,4.2467,154.0,153.97,3.2472]
[1729039829298,1.0,154.0,153.99,3.2468]
[1729039831000,4.2466,154.0,153.97,3.247]
[1729039831698,1.0,154.0,153.97,3.247]
[1729039833801,1.0,154.0,153.96,8.1873]
[1729039834399,3.2469,153.99,153.96,8.1873]
[1729039834602,3.2469,153.99,153.96,3.2473]
[1729039839502,3.247,153.98,153.95,8.1674]
[1729039840610,9.98,153.99,153.94,9.98]
[1729039840913,3.2472,153.97,153.94,8.1677]
[1729039841100,2.7865,153.99,153.94,14.9]
[1729039841508,12.7665,153.99,153.94,14.9]
[1729039842009,3.2471,153.98,153.95,3.2476]
[1729039844214,9.98,153.97,153.87,3.17085851]
[1729039844513,9.98,153.94,153.89,4.92]
[1729039844813,9.98,153.92,153.88,4.92]
[1729039845400,9.98,153.94,153.89,3.2488]
[1729039845606,9.98,153.94,153.88,14.9]
[1729039845807,3.2483,153.92,153.88,8.1689]
[1729039846005,20.53,153.97,153.88,4.92]
[1729039846208,23.79682951,153.97,153.88,4.92]
[1729039846926,3.248,153.94,153.88,4.92]
[1729039848315,3.2481,153.93,153.9,3.2485]
[1729039853618,3.2481,153.93,153.89,3.2488]
[1729039854120,15.61,153.93,153.87,4.92]
[1729039854309,1.412,153.92,153.87,4.92]
[1729039854505,3.2488,153.9,153.87,4.92]
[1729039855414,3.2488,153.9,153.87,8.1692]
[1729039855815,1.412,153.92,153.83,15.61]
[1729039856008,3.2489,153.89,153.86,3.2494]
[1729039856206,2.7432,153.92,153.85,4.92]
[1729039856610,3.2486,153.91,153.87,3.2491]
[1729039856821,2.7432,153.92,153.85,20.53]
[1729039857119,5.9915,153.92,153.85,20.53]
[1729039857516,15.61,153.95,153.85,20.53]
[1729039857715,3.2479,153.94,153.9,3.2485]
[1729039857910,26.51274468,153.97,153.9,3.2485]
[1729039858618,3.2481,153.93,153.9,3.2485]
[1729039860020,3.2481,153.93,153.87,15.61]
[1729039860021,23.3002,153.97,153.87,18.88819304]
[1729039860215,7.6902,153.97,153.89,15.61]
[1729039860521,7.6902,153.97,153.9,4.92]
[1729039860915,3.2477,153.95,153.92,3.2481]
[1729039862118,6.0175,153.97,153.94,3.2478]
[1729039862315,2.7702,153.97,153.94,3.2478]
[1729039862514,2.7702,153.97,153.91,15.61]
[1729039862817,1.0,154.0,153.93,15.61]
[1729039863019,1.0,154.0,153.94,4.9]
[1729039863221,1.0,154.0,153.98,3.2469]
[1729039863428,1.0,154.0,153.94,4.9]
[1729039863726,16.61,154.0,153.94,4.9]
[1729039864116,3.2473,153.97,153.94,8.1478]
[1729039864317,16.61,154.0,153.94,4.9]
[1729039864623,15.61,153.98,153.91,4.9]
[1729039864823,4.276,153.97,153.91,4.9]
[1729039865217,3.2477,153.95,153.89,15.61]
[1729039865417,3.2477,153.95,153.87,4.9]
[1729039865418,4.9,153.95,153.87,4.9]
[1729039865920,13.2284,153.92,153.88,3.2489]
[1729039866118,9.98,153.9,153.85,9.98]
[1729039866423,9.98,153.89,153.84,14.88]
[1729039866724,13.2289,153.89,153.86,3.2494]
[1729039866921,9.98,153.89,153.84,9.98]
[1729039867123,13.2293,153.87,153.83,3.2499]
[1729039868024,3.2493,153.87,153.83,3.2499]
[1729039869625,15.6,153.87,153.8,1.3189]
[1729039869818,3.2501,153.84,153.8,3.2506]
[1729039872728,15.6,153.86,153.78,4.9]
[1729039873036,22.6482813,153.88,153.79,15.6]
[1729039873330,15.6,153.87,153.78,4.9]
[1729039873833,15.6,153.87,153.79,3.2508]
[1729039874134,3.2501,153.84,153.8,3.2507]
[1729039874524,15.6,153.85,153.75,16.9373]
[1729039874725,3.2504,153.82,153.78,3.251]
[1729039874930,21.0041595,153.82,153.78,3.251]
[1729039875131,17.7537595,153.82,153.76,4.9]
[1729039875435,15.6,153.81,153.75,4.9]
[1729039875730,17.7537595,153.82,153.75,4.9]
[1729039876031,3.2508,153.8,153.76,3.2515]
[1729039876431,3.251,153.79,153.73,1.0]
[1729039876730,17.7537595,153.82,153.74,4.9]
[1729039878036,3.2507,153.81,153.76,3.2515]
[1729039878632,17.7537595,153.82,153.74,4.9]
[1729039878633,17.7537595,153.82,153.75,15.6]
[1729039878836,17.7537595,153.82,153.78,15.6]
[1729039879134,17.7537595,153.82,153.76,15.6]
[1729039879538,17.7537595,153.82,153.78,3.251]
[1729039879740,17.7537595,153.82,153.74,20.5]
[1729039880653,17.7537595,153.82,153.79,3.2509]
[1729039881247,17.7537595,153.82,153.74,20.5]
[1729039881443,21.0042595,153.82,153.78,3.2512]
[1729039883944,17.7537595,153.82,153.76,15.6]
[1729039884147,17.7537595,153.82,153.81,3.2506]
[1729039888050,17.7537595,153.82,153.8,3.2506]
[1729039889449,17.7537595,153.82,153.79,3.2508]
[1729039890454,21.0040595,153.82,153.79,3.2508]
[1729039890852,21.0040595,153.82,153.78,4.9]
[1729039891057,21.0040595,153.82,153.78,8.151]
[1729039892449,3.2507,153.81,153.78,3.251]
[1729039894459,17.7537595,153.82,153.76,4.94]
[1729039895053,21.0041595,153.82,153.76,4.94]
[1729039895249,17.7537595,153.82,153.76,4.94]
[1729039895766,21.0040595,153.82,153.79,3.251]
[1729039896054,17.7537595,153.82,153.8,9.99]
[1729039896555,17.7537595,153.82,153.81,3.2506]
[1729039897061,1.3825,153.87,153.85,3.2496]
[1729039897256,17.7482813,153.88,153.85,9.99]
[1729039897666,17.7482813,153.88,153.86,3.2494]
[1729039898656,17.7482813,153.88,153.84,4.94]
[1729039899759,17.7482813,153.88,153.86,3.2495]
[1729039908069,20.9973813,153.88,153.85,3.2496]
[1729039908368,17.7482813,153.88,153.84,4.94]
[1729039909468,17.7482813,153.88,153.86,3.2495]